Workbook

Sheet INÍCIO
B1: Sobre o modelo
B2: Use este modelo para manter o orçamento mensal e anual.
B3: Insira Receitas e Despesas nas respectivas tabelas para calcular sobra e falta no orçamento de cada mês e ano.
B4: Os minigráficos são atualizados automaticamente em cada tabela.
B5: Observação:
B6: Instruções adicionais são fornecidas na coluna A da planilha ORÇAMENTO PESSOAL. Este texto está oculto de propósito. Para removê-lo, selecione a coluna A e selecione Excluir. Para reexibir o texto, selecione a coluna A e altere a cor da fonte.
B7: Para saber mais sobre tabelas, pressione SHIFT e F10 dentro de uma tabela, selecione a opção TABELA e, em seguida, selecione TEXTO ALTERNATIVO.

Sheet ORÇAMENTO PESSOAL
A1: Crie um orçamento pessoal simples nesta planilha. Instruções úteis sobre como usar esta planilha estão nas células desta coluna. Pressione Seta para baixo para começar.
A2: O título desta planilha está na célula à direita. Insira o ano na célula Q2. A próxima instrução está na célula A4. | B2: ORÇAMENTO PESSOAL | Q2: =YEAR(TODAY()) -> 2019
A4: Os rótulos estão nas células C4 a P4. | C4: RECEITA | D4: JAN | E4: FEV | F4: MAR | G4: ABR | H4: MAIO | I4: JUN | J4: JUL | K4: AGO | L4: SET | M4: OUT | N4: NOV | O4: DEZ | P4: ANO
A5: Insira os detalhes na tabela receita, começando na célula C5. A próxima instrução está na célula A11. | C5: RECEITA | D5: Janeiro | E5: Fevereiro | F5: Março | G5: Abr | H5: Maio | I5: Jun | J5: Julho | K5: Agosto | L5: Setembro | M5: Outubro | N5: Novembro | O5: Dezembro | P5: Ano | Q5: Minigráfico
C6: Salários | D6: R$ 2,600.00 | E6: R$ 2,600.00 | F6: R$ 2,600.00 | P6: =SUM(Receita[[#This Row],[Janeiro]:[Dezembro]]) -> R$ 7,800.00
C7: Juros/dividendos | D7: R$ 649.00 | E7: R$ 313.00 | F7: R$ 664.00 | P7: =SUM(Receita[[#This Row],[Janeiro]:[Dezembro]]) -> R$ 1,626.00
C8: Diversos | D8: R$ 474.00 | E8: R$ 643.00 | F8: R$ 380.00 | P8: =SUM(Receita[[#This Row],[Janeiro]:[Dezembro]]) -> R$ 1,497.00
C9: Total | D9: =SUBTOTAL(109,Receita[Janeiro]) -> R$ 3,723.00 | E9: =SUBTOTAL(109,Receita[Fevereiro]) -> R$ 3,556.00 | F9: =SUBTOTAL(109,Receita[Março]) -> R$ 3,644.00 | G9: =SUBTOTAL(109,Receita[Abr]) -> R$ 0.00 | H9: =SUBTOTAL(109,Receita[Maio]) -> R$ 0.00 | I9: =SUBTOTAL(109,Receita[Jun]) -> R$ 0.00 | J9: =SUBTOTAL(109,Receita[Julho]) -> R$ 0.00 | K9: =SUBTOTAL(109,Receita[Agosto]) -> R$ 0.00 | L9: =SUBTOTAL(109,Receita[Setembro]) -> R$ 0.00 | M9: =SUBTOTAL(109,Receita[Outubro]) -> R$ 0.00 | N9: =SUBTOTAL(109,Receita[Novembro]) -> R$ 0.00 | O9: =SUBTOTAL(109,Receita[Dezembro]) -> R$ 0.00 | P9: =SUBTOTAL(109,Receita[Ano]) -> R$ 10,923.00
A11: Os rótulos estão nas células C11 a P11. | C11: DESPESAS | D11: JAN | E11: FEV | F11: MAR | G11: ABR | H11: MAIO | I11: JUN | J11: JUL | K11: AGO | L11: SET | M11: OUT | N11: NOV | O11: DEZ | P11: ANO
A12: Insira as despesas domésticas na tabela, começando na célula C12. A próxima instrução está na célula A20. | C12: DOMÉSTICAS | D12: Janeiro | E12: Fevereiro | F12: Março | G12: Abr | H12: Mai | I12: Jun | J12: Julho | K12: Agosto | L12: Setembro | M12: Outubro | N12: Novembro | O12: Dezembro | P12: Ano | Q12: Minigráfico
C13: Hipoteca | D13: R$ 750.00 | E13: R$ 750.00 | F13: R$ 750.00 | P13: =SUM(Domésticas[[#This Row],[Janeiro]:[Dezembro]]) -> R$ 2,250.00
C14: Viagem | P14: =SUM(Domésticas[[#This Row],[Janeiro]:[Dezembro]]) -> R$ 0.00
C15: Reparos | F15: R$ 75.00 | P15: =SUM(Domésticas[[#This Row],[Janeiro]:[Dezembro]]) -> R$ 75.00
C16: Serviços | D16: R$ 35.00 | E16: R$ 35.00 | F16: R$ 35.00 | P16: =SUM(Domésticas[[#This Row],[Janeiro]:[Dezembro]]) -> R$ 105.00
C17: Serviços Públicos | D17: R$ 165.00 | E17: R$ 165.00 | F17: R$ 165.00 | P17: =SUM(Domésticas[[#This Row],[Janeiro]:[Dezembro]]) -> R$ 495.00
C18: Total | D18: =SUBTOTAL(109,Domésticas[Janeiro]) -> R$ 950.00 | E18: =SUBTOTAL(109,Domésticas[Fevereiro]) -> R$ 950.00 | F18: =SUBTOTAL(109,Domésticas[Março]) -> R$ 1,025.00 | G18: =SUBTOTAL(109,Domésticas[Abr]) -> R$ 0.00 | H18: =SUBTOTAL(109,Domésticas[Mai]) -> R$ 0.00 | I18: =SUBTOTAL(109,Domésticas[Jun]) -> R$ 0.00 | J18: =SUBTOTAL(109,Domésticas[Julho]) -> R$ 0.00 | K18: =SUBTOTAL(109,Domésticas[Agosto]) -> R$ 0.00 | L18: =SUBTOTAL(109,Domésticas[Setembro]) -> R$ 0.00 | M18: =SUBTOTAL(109,Domésticas[Outubro]) -> R$ 0.00 | N18: =SUBTOTAL(109,Domésticas[Novembro]) -> R$ 0.00 | O18: =SUBTOTAL(109,Domésticas[Dezembro]) -> R$ 0.00 | P18: =SUBTOTAL(109,Domésticas[Ano]) -> R$ 2,925.00
A20: Insira as despesas diárias na tabela, começando na célula C20. A próxima instrução está na célula A29. | C20: Cotidiano | D20: Janeiro | E20: Fevereiro | F20: Março | G20: Abr | H20: Mai | I20: Jun | J20: Julho | K20: Agosto | L20: Setembro | M20: Outubro | N20: Novembro | O20: Dezembro | P20: Ano | Q20: Minigráfico
C21: Supermercado | D21: R$ 191.00 | E21: R$ 152.00 | F21: R$ 145.00 | P21: =SUM(Diárias[[#This Row],[Janeiro]:[Dezembro]]) -> R$ 488.00
C22: Creche | D22: R$ 200.00 | E22: R$ 200.00 | F22: R$ 200.00 | P22: =SUM(Diárias[[#This Row],[Janeiro]:[Dezembro]]) -> R$ 600.00
C23: Lavagem a seco | D23: R$ 20.00 | F23: R$ 20.00 | P23: =SUM(Diárias[[#This Row],[Janeiro]:[Dezembro]]) -> R$ 40.00
C24: Jantar fora | D24: R$ 55.00 | F24: R$ 56.00 | P24: =SUM(Diárias[[#This Row],[Janeiro]:[Dezembro]]) -> R$ 111.00
C25: Serviço de limpeza doméstica | D25: R$ 25.00 | E25: R$ 17.00 | F25: R$ 7.00 | P25: =SUM(Diárias[[#This Row],[Janeiro]:[Dezembro]]) -> R$ 49.00
C26: Passeador de cães | D26: R$ 10.00 | E26: R$ 5.00 | F26: R$ 7.00 | P26: =SUM(Diárias[[#This Row],[Janeiro]:[Dezembro]]) -> R$ 22.00
C27: Total | D27: =SUBTOTAL(109,Diárias[Janeiro]) -> R$ 501.00 | E27: =SUBTOTAL(109,Diárias[Fevereiro]) -> R$ 374.00 | F27: =SUBTOTAL(109,Diárias[Março]) -> R$ 435.00 | G27: =SUBTOTAL(109,Diárias[Abr]) -> R$ 0.00 | H27: =SUBTOTAL(109,Diárias[Mai]) -> R$ 0.00 | I27: =SUBTOTAL(109,Diárias[Jun]) -> R$ 0.00 | J27: =SUBTOTAL(109,Diárias[Julho]) -> R$ 0.00 | K27: =SUBTOTAL(109,Diárias[Agosto]) -> R$ 0.00 | L27: =SUBTOTAL(109,Diárias[Setembro]) -> R$ 0.00 | M27: =SUBTOTAL(109,Diárias[Outubro]) -> R$ 0.00 | N27: =SUBTOTAL(109,Diárias[Novembro]) -> R$ 0.00 | O27: =SUBTOTAL(109,Diárias[Dezembro]) -> R$ 0.00 | P27: =SUBTOTAL(109,Diárias[Ano]) -> R$ 1,310.00
A29: Insira as despesas de transporte na tabela, começando na célula C29. A próxima instrução está na célula A38. | C29: TRANSPORTE | D29: Janeiro | E29: Fevereiro | F29: Março | G29: Abr | H29: Mai | I29: Jun | J29: Julho | K29: Agosto | L29: Setembro | M29: Outubro | N29: Novembro | O29: Dezembro | P29: Ano | Q29: Minigráfico
C30: Combustível | D30: R$ 195.00 | E30: R$ 125.00 | F30: R$ 171.00 | P30: =SUM(Transporte[[#This Row],[Janeiro]:[Dezembro]]) -> R$ 491.00
C31: Seguro | D31: R$ 165.00 | E31: R$ 165.00 | F31: R$ 165.00 | P31: =SUM(Transporte[[#This Row],[Janeiro]:[Dezembro]]) -> R$ 495.00
C32: Reparos | P32: =SUM(Transporte[[#This Row],[Janeiro]:[Dezembro]]) -> R$ 0.00
C33: Lavagem do carro | D33: R$ 10.00 | P33: =SUM(Transporte[[#This Row],[Janeiro]:[Dezembro]]) -> R$ 10.00
C34: Estacionamento | D34: R$ 10.00 | E34: R$ 40.00 | F34: R$ 20.00 | P34: =SUM(Transporte[[#This Row],[Janeiro]:[Dezembro]]) -> R$ 70.00
C35: Transporte público | D35: R$ 20.00 | E35: R$ 40.00 | F35: R$ 30.00 | P35: =SUM(Transporte[[#This Row],[Janeiro]:[Dezembro]]) -> R$ 90.00
C36: Total | D36: =SUBTOTAL(109,Transporte[Janeiro]) -> R$ 400.00 | E36: =SUBTOTAL(109,Transporte[Fevereiro]) -> R$ 370.00 | F36: =SUBTOTAL(109,Transporte[Março]) -> R$ 386.00 | G36: =SUBTOTAL(109,Transporte[Abr]) -> R$ 0.00 | H36: =SUBTOTAL(109,Transporte[Mai]) -> R$ 0.00 | I36: =SUBTOTAL(109,Transporte[Jun]) -> R$ 0.00 | J36: =SUBTOTAL(109,Transporte[Julho]) -> R$ 0.00 | K36: =SUBTOTAL(109,Transporte[Agosto]) -> R$ 0.00 | L36: =SUBTOTAL(109,Transporte[Setembro]) -> R$ 0.00 | M36: =SUBTOTAL(109,Transporte[Outubro]) -> R$ 0.00 | N36: =SUBTOTAL(109,Transporte[Novembro]) -> R$ 0.00 | O36: =SUBTOTAL(109,Transporte[Dezembro]) -> R$ 0.00 | P36: =SUBTOTAL(109,Transporte[Ano]) -> R$ 1,156.00
A38: Insira as despesas de entretenimento na tabela, começando na célula C38. A próxima instrução está na célula A45. | C38: ENTRETENIMENTO | D38: Janeiro | E38: Fevereiro | F38: Março | G38: Abr | H38: Mai | I38: Jun | J38: Julho | K38: Agosto | L38: Setembro | M38: Outubro | N38: Novembro | O38: Dezembro | P38: Ano | Q38: Minigráfico
C39: TV a cabo | D39: R$ 85.00 | E39: R$ 85.00 | F39: R$ 85.00 | P39: =SUM(Entretenimento[[#This Row],[Janeiro]:[Dezembro]]) -> R$ 255.00
C40: Locações de vídeo/DVD | D40: R$ 7.00 | E40: R$ 8.00 | F40: R$ 9.00 | P40: =SUM(Entretenimento[[#This Row],[Janeiro]:[Dezembro]]) -> R$ 24.00
C41: Cinema/teatro | D41: R$ 9.00 | E41: R$ 5.00 | F41: R$ 9.00 | P41: =SUM(Entretenimento[[#This Row],[Janeiro]:[Dezembro]]) -> R$ 23.00
C42: Shows/clubes | D42: R$ 5.00 | E42: R$ 5.00 | F42: R$ 7.00 | P42: =SUM(Entretenimento[[#This Row],[Janeiro]:[Dezembro]]) -> R$ 17.00
C43: Total | D43: =SUBTOTAL(109,Entretenimento[Janeiro]) -> R$ 106.00 | E43: =SUBTOTAL(109,Entretenimento[Fevereiro]) -> R$ 103.00 | F43: =SUBTOTAL(109,Entretenimento[Março]) -> R$ 110.00 | G43: =SUBTOTAL(109,Entretenimento[Abr]) -> R$ 0.00 | H43: =SUBTOTAL(109,Entretenimento[Mai]) -> R$ 0.00 | I43: =SUBTOTAL(109,Entretenimento[Jun]) -> R$ 0.00 | J43: =SUBTOTAL(109,Entretenimento[Julho]) -> R$ 0.00 | K43: =SUBTOTAL(109,Entretenimento[Agosto]) -> R$ 0.00 | L43: =SUBTOTAL(109,Entretenimento[Setembro]) -> R$ 0.00 | M43: =SUBTOTAL(109,Entretenimento[Outubro]) -> R$ 0.00 | N43: =SUBTOTAL(109,Entretenimento[Novembro]) -> R$ 0.00 | O43: =SUBTOTAL(109,Entretenimento[Dezembro]) -> R$ 0.00 | P43: =SUBTOTAL(109,Entretenimento[Ano]) -> R$ 319.00
A45: Insira as despesas de saúde na tabela, começando na célula C45. A próxima instrução está na célula A55. | C45: SAÚDE | D45: Janeiro | E45: Fevereiro | F45: Março | G45: Abr | H45: Mai | I45: Jun | J45: Julho | K45: Agosto | L45: Setembro | M45: Outubro | N45: Novembro | O45: Dezembro | P45: Ano | Q45: Minigráfico
C46: Mensalidade da academia | D46: R$ 50.00 | E46: R$ 50.00 | F46: R$ 50.00 | P46: =SUM(Saúde[[#This Row],[Janeiro]:[Dezembro]]) -> R$ 150.00
C47: Seguro | D47: R$ 225.00 | E47: R$ 225.00 | F47: R$ 225.00 | P47: =SUM(Saúde[[#This Row],[Janeiro]:[Dezembro]]) -> R$ 675.00
C48: Medicamentos com prescrição | D48: R$ 100.00 | E48: R$ 100.00 | F48: R$ 100.00 | P48: =SUM(Saúde[[#This Row],[Janeiro]:[Dezembro]]) -> R$ 300.00
C49: Medicamentos sem prescrição | D49: R$ 6.00 | E49: R$ 2.00 | F49: R$ 9.00 | P49: =SUM(Saúde[[#This Row],[Janeiro]:[Dezembro]]) -> R$ 17.00
C50: Coparticipação/particular | D50: R$ 20.00 | F50: R$ 41.00 | P50: =SUM(Saúde[[#This Row],[Janeiro]:[Dezembro]]) -> R$ 61.00
C51: Veterinário/medicamentos para animais de estimação | D51: R$ 4.00 | F51: R$ 25.00 | P51: =SUM(Saúde[[#This Row],[Janeiro]:[Dezembro]]) -> R$ 29.00
C52: Seguro de vida | D52: R$ 55.00 | E52: R$ 55.00 | F52: R$ 55.00 | P52: =SUM(Saúde[[#This Row],[Janeiro]:[Dezembro]]) -> R$ 165.00
C53: Total | D53: =SUBTOTAL(109,Saúde[Janeiro]) -> R$ 460.00 | E53: =SUBTOTAL(109,Saúde[Fevereiro]) -> R$ 432.00 | F53: =SUBTOTAL(109,Saúde[Março]) -> R$ 505.00 | G53: =SUBTOTAL(109,Saúde[Abr]) -> R$ 0.00 | H53: =SUBTOTAL(109,Saúde[Mai]) -> R$ 0.00 | I53: =SUBTOTAL(109,Saúde[Jun]) -> R$ 0.00 | J53: =SUBTOTAL(109,Saúde[Julho]) -> R$ 0.00 | K53: =SUBTOTAL(109,Saúde[Agosto]) -> R$ 0.00 | L53: =SUBTOTAL(109,Saúde[Setembro]) -> R$ 0.00 | M53: =SUBTOTAL(109,Saúde[Outubro]) -> R$ 0.00 | N53: =SUBTOTAL(109,Saúde[Novembro]) -> R$ 0.00 | O53: =SUBTOTAL(109,Saúde[Dezembro]) -> R$ 0.00 | P53: =SUBTOTAL(109,Saúde[Ano]) -> R$ 1,397.00
A55: Insira as despesas de férias na tabela, começando na célula C55. A próxima instrução está na célula A64. | C55: FÉRIAS | D55: Janeiro | E55: Fevereiro | F55: Março | G55: Abr | H55: Mai | I55: Jun | J55: Julho | K55: Agosto | L55: Setembro | M55: Outubro | N55: Novembro | O55: Dezembro | P55: Ano | Q55: Minigráfico
C56: Passagens de avião | E56: R$ 485.00 | P56: =SUM(Férias[[#This Row],[Janeiro]:[Dezembro]]) -> R$ 485.00
C57: Acomodações | E57: R$ 245.00 | P57: =SUM(Férias[[#This Row],[Janeiro]:[Dezembro]]) -> R$ 245.00
C58: Alimentação | E58: R$ 95.00 | P58: =SUM(Férias[[#This Row],[Janeiro]:[Dezembro]]) -> R$ 95.00
C59: Souvenirs | P59: =SUM(Férias[[#This Row],[Janeiro]:[Dezembro]]) -> R$ 0.00
C60: Taxas para transporte de animais de estimação | P60: =SUM(Férias[[#This Row],[Janeiro]:[Dezembro]]) -> R$ 0.00
C61: Aluguel de carro | E61: R$ 85.00 | P61: =SUM(Férias[[#This Row],[Janeiro]:[Dezembro]]) -> R$ 85.00
C62: Total | D62: =SUBTOTAL(109,Férias[Janeiro]) -> R$ 0.00 | E62: =SUBTOTAL(109,Férias[Fevereiro]) -> R$ 910.00 | F62: =SUBTOTAL(109,Férias[Março]) -> R$ 0.00 | G62: =SUBTOTAL(109,Férias[Abr]) -> R$ 0.00 | H62: =SUBTOTAL(109,Férias[Mai]) -> R$ 0.00 | I62: =SUBTOTAL(109,Férias[Jun]) -> R$ 0.00 | J62: =SUBTOTAL(109,Férias[Julho]) -> R$ 0.00 | K62: =SUBTOTAL(109,Férias[Agosto]) -> R$ 0.00 | L62: =SUBTOTAL(109,Férias[Setembro]) -> R$ 0.00 | M62: =SUBTOTAL(109,Férias[Outubro]) -> R$ 0.00 | N62: =SUBTOTAL(109,Férias[Novembro]) -> R$ 0.00 | O62: =SUBTOTAL(109,Férias[Dezembro]) -> R$ 0.00 | P62: =SUBTOTAL(109,Férias[Ano]) -> R$ 910.00
A64: Insira as despesas de lazer na tabela, começando na célula C64. A próxima instrução está na célula A71. | C64: LAZER | D64: Janeiro | E64: Fevereiro | F64: Março | G64: Abr | H64: Mai | I64: Jun | J64: Julho | K64: Agosto | L64: Setembro | M64: Outubro | N64: Novembro | O64: Dezembro | P64: Ano | Q64: Minigráfico
C65: Taxas da academia | P65: =SUM(Lazer[[#This Row],[Janeiro]:[Dezembro]]) -> R$ 0.00
C66: Equipamentos de esportes | P66: =SUM(Lazer[[#This Row],[Janeiro]:[Dezembro]]) -> R$ 0.00
C67: Mensalidade de sócio da equipe | P67: =SUM(Lazer[[#This Row],[Janeiro]:[Dezembro]]) -> R$ 0.00
C68: Brinquedos | D68: R$ 39.00 | E68: R$ 33.00 | F68: R$ 40.00 | P68: =SUM(Lazer[[#This Row],[Janeiro]:[Dezembro]]) -> R$ 112.00
C69: Total | D69: =SUBTOTAL(109,Lazer[Janeiro]) -> R$ 39.00 | E69: =SUBTOTAL(109,Lazer[Fevereiro]) -> R$ 33.00 | F69: =SUBTOTAL(109,Lazer[Março]) -> R$ 40.00 | G69: =SUBTOTAL(109,Lazer[Abr]) -> R$ 0.00 | H69: =SUBTOTAL(109,Lazer[Mai]) -> R$ 0.00 | I69: =SUBTOTAL(109,Lazer[Jun]) -> R$ 0.00 | J69: =SUBTOTAL(109,Lazer[Julho]) -> R$ 0.00 | K69: =SUBTOTAL(109,Lazer[Agosto]) -> R$ 0.00 | L69: =SUBTOTAL(109,Lazer[Setembro]) -> R$ 0.00 | M69: =SUBTOTAL(109,Lazer[Outubro]) -> R$ 0.00 | N69: =SUBTOTAL(109,Lazer[Novembro]) -> R$ 0.00 | O69: =SUBTOTAL(109,Lazer[Dezembro]) -> R$ 0.00 | P69: =SUBTOTAL(109,Lazer[Ano]) -> R$ 112.00
A71: Insira as despesas de mensalidades e assinaturas na tabela, começando na célula C71. A próxima instrução está na célula A81. | C71: MENSALIDADES/ASSINATURAS | D71: Janeiro | E71: Fevereiro | F71: Março | G71: Abr | H71: Mai | I71: Jun | J71: Julho | K71: Agosto | L71: Setembro | M71: Outubro | N71: Novembro | O71: Dezembro | P71: Ano | Q71: Minigráfico
C72: Revistas | P72: =SUM(MensalidadesEAssinaturas[[#This Row],[Janeiro]:[Dezembro]]) -> R$ 0.00
C73: Jornais | P73: =SUM(MensalidadesEAssinaturas[[#This Row],[Janeiro]:[Dezembro]]) -> R$ 0.00
C74: Internet | P74: =SUM(MensalidadesEAssinaturas[[#This Row],[Janeiro]:[Dezembro]]) -> R$ 0.00
C75: Rádio aberta | P75: =SUM(MensalidadesEAssinaturas[[#This Row],[Janeiro]:[Dezembro]]) -> R$ 0.00
C76: TV aberta | P76: =SUM(MensalidadesEAssinaturas[[#This Row],[Janeiro]:[Dezembro]]) -> R$ 0.00
C77: Organizações religiosas | D77: R$ 29.00 | E77: R$ 18.00 | F77: R$ 17.00 | P77: =SUM(MensalidadesEAssinaturas[[#This Row],[Janeiro]:[Dezembro]]) -> R$ 64.00
C78: Donativo | P78: =SUM(MensalidadesEAssinaturas[[#This Row],[Janeiro]:[Dezembro]]) -> R$ 0.00
C79: Total | D79: =SUBTOTAL(109,MensalidadesEAssinaturas[Janeiro]) -> R$ 29.00 | E79: =SUBTOTAL(109,MensalidadesEAssinaturas[Fevereiro]) -> R$ 18.00 | F79: =SUBTOTAL(109,MensalidadesEAssinaturas[Março]) -> R$ 17.00 | G79: =SUBTOTAL(109,MensalidadesEAssinaturas[Abr]) -> R$ 0.00 | H79: =SUBTOTAL(109,MensalidadesEAssinaturas[Mai]) -> R$ 0.00 | I79: =SUBTOTAL(109,MensalidadesEAssinaturas[Jun]) -> R$ 0.00 | J79: =SUBTOTAL(109,MensalidadesEAssinaturas[Julho]) -> R$ 0.00 | K79: =SUBTOTAL(109,MensalidadesEAssinaturas[Agosto]) -> R$ 0.00 | L79: =SUBTOTAL(109,MensalidadesEAssinaturas[Setembro]) -> R$ 0.00 | M79: =SUBTOTAL(109,MensalidadesEAssinaturas[Outubro]) -> R$ 0.00 | N79: =SUBTOTAL(109,MensalidadesEAssinaturas[Novembro]) -> R$ 0.00 | O79: =SUBTOTAL(109,MensalidadesEAssinaturas[Dezembro]) -> R$ 0.00 | P79: =SUBTOTAL(109,MensalidadesEAssinaturas[Ano]) -> R$ 64.00
A81: Insira as despesas pessoais na tabela, começando na célula C81. A próxima instrução está na célula A89. | C81: PESSOAIS | D81: Janeiro | E81: Fevereiro | F81: Março | G81: Abr | H81: Mai | I81: Jun | J81: Julho | K81: Agosto | L81: Setembro | M81: Outubro | N81: Novembro | O81: Dezembro | P81: Ano | Q81: Minigráfico
C82: Vestuário | F82: R$ 29.00 | P82: =SUM(Pessoais[[#This Row],[Janeiro]:[Dezembro]]) -> R$ 29.00
C83: Presentes | E83: R$ 35.00 | P83: =SUM(Pessoais[[#This Row],[Janeiro]:[Dezembro]]) -> R$ 35.00
C84: Salão/barbeiro | D84: R$ 25.00 | E84: R$ 25.00 | F84: R$ 25.00 | P84: =SUM(Pessoais[[#This Row],[Janeiro]:[Dezembro]]) -> R$ 75.00
C85: Livros | P85: =SUM(Pessoais[[#This Row],[Janeiro]:[Dezembro]]) -> R$ 0.00
C86: Música (CDs, etc.) | P86: =SUM(Pessoais[[#This Row],[Janeiro]:[Dezembro]]) -> R$ 0.00
C87: Total | D87: =SUBTOTAL(109,Pessoais[Janeiro]) -> R$ 25.00 | E87: =SUBTOTAL(109,Pessoais[Fevereiro]) -> R$ 60.00 | F87: =SUBTOTAL(109,Pessoais[Março]) -> R$ 54.00 | G87: =SUBTOTAL(109,Pessoais[Abr]) -> R$ 0.00 | H87: =SUBTOTAL(109,Pessoais[Mai]) -> R$ 0.00 | I87: =SUBTOTAL(109,Pessoais[Jun]) -> R$ 0.00 | J87: =SUBTOTAL(109,Pessoais[Julho]) -> R$ 0.00 | K87: =SUBTOTAL(109,Pessoais[Agosto]) -> R$ 0.00 | L87: =SUBTOTAL(109,Pessoais[Setembro]) -> R$ 0.00 | M87: =SUBTOTAL(109,Pessoais[Outubro]) -> R$ 0.00 | N87: =SUBTOTAL(109,Pessoais[Novembro]) -> R$ 0.00 | O87: =SUBTOTAL(109,Pessoais[Dezembro]) -> R$ 0.00 | P87: =SUBTOTAL(109,Pessoais[Ano]) -> R$ 139.00
A89: Insira as obrigações financeiras na tabela, começando na célula C89. A próxima instrução está na célula A97. | C89: OBRIGAÇÕES FINANCEIRAS | D89: Janeiro | E89: Fevereiro | F89: Março | G89: Abr | H89: Mai | I89: Jun | J89: Julho | K89: Agosto | L89: Setembro | M89: Outubro | N89: Novembro | O89: Dezembro | P89: Ano | Q89: Minigráfico
C90: Economias de longo prazo | D90: R$ 25.00 | E90: R$ 25.00 | F90: R$ 25.00 | P90: =SUM(Financeiro[[#This Row],[Janeiro]:[Dezembro]]) -> R$ 75.00
C91: Aposentadoria | D91: R$ 45.00 | E91: R$ 45.00 | F91: R$ 45.00 | P91: =SUM(Financeiro[[#This Row],[Janeiro]:[Dezembro]]) -> R$ 135.00
C92: Pagamentos do cartão de crédito | D92: R$ 75.00 | E92: R$ 75.00 | F92: R$ 75.00 | P92: =SUM(Financeiro[[#This Row],[Janeiro]:[Dezembro]]) -> R$ 225.00
C93: Imposto de renda (adicional) | P93: =SUM(Financeiro[[#This Row],[Janeiro]:[Dezembro]]) -> R$ 0.00
C94: Outras obrigações | D94: R$ 32.00 | E94: R$ 34.00 | F94: R$ 1.00 | P94: =SUM(Financeiro[[#This Row],[Janeiro]:[Dezembro]]) -> R$ 67.00
C95: Total | D95: =SUBTOTAL(109,Financeiro[Janeiro]) -> R$ 177.00 | E95: =SUBTOTAL(109,Financeiro[Fevereiro]) -> R$ 179.00 | F95: =SUBTOTAL(109,Financeiro[Março]) -> R$ 146.00 | G95: =SUBTOTAL(109,Financeiro[Abr]) -> R$ 0.00 | H95: =SUBTOTAL(109,Financeiro[Mai]) -> R$ 0.00 | I95: =SUBTOTAL(109,Financeiro[Jun]) -> R$ 0.00 | J95: =SUBTOTAL(109,Financeiro[Julho]) -> R$ 0.00 | K95: =SUBTOTAL(109,Financeiro[Agosto]) -> R$ 0.00 | L95: =SUBTOTAL(109,Financeiro[Setembro]) -> R$ 0.00 | M95: =SUBTOTAL(109,Financeiro[Outubro]) -> R$ 0.00 | N95: =SUBTOTAL(109,Financeiro[Novembro]) -> R$ 0.00 | O95: =SUBTOTAL(109,Financeiro[Dezembro]) -> R$ 0.00 | P95: =SUBTOTAL(109,Financeiro[Ano]) -> R$ 502.00
A97: Insira os pagamentos diversos na tabela, começando na célula C97. A próxima instrução está na célula A105. | C97: PAGAMENTOS DIVERSOS | D97: Janeiro | E97: Fevereiro | F97: Março | G97: Abr | H97: Maio | I97: Jun | J97: Julho | K97: Agosto | L97: Setembro | M97: Outubro | N97: Novembro | O97: Dezembro | P97: Ano | Q97: Minigráfico
C98: Outros | P98: =SUM(Diversos[[#This Row],[Janeiro]:[Dezembro]]) -> R$ 0.00
C99: Outros | P99: =SUM(Diversos[[#This Row],[Janeiro]:[Dezembro]]) -> R$ 0.00
C100: Outros | P100: =SUM(Diversos[[#This Row],[Janeiro]:[Dezembro]]) -> R$ 0.00
C101: Outros | P101: =SUM(Diversos[[#This Row],[Janeiro]:[Dezembro]]) -> R$ 0.00
C102: Outros | P102: =SUM(Diversos[[#This Row],[Janeiro]:[Dezembro]]) -> R$ 0.00
C103: Total | D103: =SUBTOTAL(109,Diversos[Janeiro]) -> R$ 0.00 | E103: =SUBTOTAL(109,Diversos[Fevereiro]) -> R$ 0.00 | F103: =SUBTOTAL(109,Diversos[Março]) -> R$ 0.00 | G103: =SUBTOTAL(109,Diversos[Abr]) -> R$ 0.00 | H103: =SUBTOTAL(109,Diversos[Maio]) -> R$ 0.00 | I103: =SUBTOTAL(109,Diversos[Jun]) -> R$ 0.00 | J103: =SUBTOTAL(109,Diversos[Julho]) -> R$ 0.00 | K103: =SUBTOTAL(109,Diversos[Agosto]) -> R$ 0.00 | L103: =SUBTOTAL(109,Diversos[Setembro]) -> R$ 0.00 | M103: =SUBTOTAL(109,Diversos[Outubro]) -> R$ 0.00 | N103: =SUBTOTAL(109,Diversos[Novembro]) -> R$ 0.00 | O103: =SUBTOTAL(109,Diversos[Dezembro]) -> R$ 0.00 | P103: =SUBTOTAL(109,Diversos[Ano]) -> R$ 0.00
A105: Os totais são calculados automaticamente na tabela, começando na célula C105. As despesas totais e a sobra e falta no orçamento são calculadas automaticamente para cada mês e ano inteiro, e os minigráficos são atualizados. | C105: TOTAIS | D105: JAN | E105: FEV | F105: MAR | G105: ABR | H105: MAIO | I105: JUN | J105: JUL | K105: AGO | L105: SET | M105: OUT | N105: NOV | O105: DEZ | P105: ANO | Q105: MINIGRÁFICO
C106: Despesas totais | D106: =SUM(Diversos[[#Totals],[Janeiro]],Financeiro[[#Totals],[Janeiro]],Pessoais[[#Totals],[Janeiro]],MensalidadesEAssinaturas[[#Totals],[Janeiro]],Lazer[[#Totals],[Janeiro]],Férias[[#Totals],[Janeiro]],Saúde[[#Totals],[Janeiro]],Entretenimento[[#Totals],[Janeiro]],Transporte[[#Totals],[Janeiro]],Diárias[[#Totals],[Janeiro]],Domésticas[[#Totals],[Janeiro]]) -> R$ 2,687.00 | E106: =SUM(Diversos[[#Totals],[Fevereiro]],Financeiro[[#Totals],[Fevereiro]],Pessoais[[#Totals],[Fevereiro]],MensalidadesEAssinaturas[[#Totals],[Fevereiro]],Lazer[[#Totals],[Fevereiro]],Férias[[#Totals],[Fevereiro]],Saúde[[#Totals],[Fevereiro]],Entretenimento[[#Totals],[Fevereiro]],Transporte[[#Totals],[Fevereiro]],Diárias[[#Totals],[Fevereiro]],Domésticas[[#Totals],[Fevereiro]]) -> R$ 3,429.00 | F106: =SUM(Diversos[[#Totals],[Março]],Financeiro[[#Totals],[Março]],Pessoais[[#Totals],[Março]],MensalidadesEAssinaturas[[#Totals],[Março]],Lazer[[#Totals],[Março]],Férias[[#Totals],[Março]],Saúde[[#Totals],[Março]],Entretenimento[[#Totals],[Março]],Transporte[[#Totals],[Março]],Diárias[[#Totals],[Março]],Domésticas[[#Totals],[Março]]) -> R$ 2,718.00 | G106: =SUM(Diversos[[#Totals],[Abr]],Financeiro[[#Totals],[Abr]],Pessoais[[#Totals],[Abr]],MensalidadesEAssinaturas[[#Totals],[Abr]],Lazer[[#Totals],[Abr]],Férias[[#Totals],[Abr]],Saúde[[#Totals],[Abr]],Entretenimento[[#Totals],[Abr]],Transporte[[#Totals],[Abr]],Diárias[[#Totals],[Abr]],Domésticas[[#Totals],[Abr]]) -> R$ 0.00 | H106: =SUM(Diversos[[#Totals],[Maio]],Financeiro[[#Totals],[Mai]],Pessoais[[#Totals],[Mai]],MensalidadesEAssinaturas[[#Totals],[Mai]],Lazer[[#Totals],[Mai]],Férias[[#Totals],[Mai]],Saúde[[#Totals],[Mai]],Entretenimento[[#Totals],[Mai]],Transporte[[#Totals],[Mai]],Diárias[[#Totals],[Mai]],Domésticas[[#Totals],[Mai]]) -> R$ 0.00 | I106: =SUM(Diversos[[#Totals],[Jun]],Financeiro[[#Totals],[Jun]],Pessoais[[#Totals],[Jun]],MensalidadesEAssinaturas[[#Totals],[Jun]],Lazer[[#Totals],[Jun]],Férias[[#Totals],[Jun]],Saúde[[#Totals],[Jun]],Entretenimento[[#Totals],[Jun]],Transporte[[#Totals],[Jun]],Diárias[[#Totals],[Jun]],Domésticas[[#Totals],[Jun]]) -> R$ 0.00 | J106: =SUM(Diversos[[#Totals],[Julho]],Financeiro[[#Totals],[Julho]],Pessoais[[#Totals],[Julho]],MensalidadesEAssinaturas[[#Totals],[Julho]],Lazer[[#Totals],[Julho]],Férias[[#Totals],[Julho]],Saúde[[#Totals],[Julho]],Entretenimento[[#Totals],[Julho]],Transporte[[#Totals],[Julho]],Diárias[[#Totals],[Julho]],Domésticas[[#Totals],[Julho]]) -> R$ 0.00 | K106: =SUM(Diversos[[#Totals],[Agosto]],Financeiro[[#Totals],[Agosto]],Pessoais[[#Totals],[Agosto]],MensalidadesEAssinaturas[[#Totals],[Agosto]],Lazer[[#Totals],[Agosto]],Férias[[#Totals],[Agosto]],Saúde[[#Totals],[Agosto]],Entretenimento[[#Totals],[Agosto]],Transporte[[#Totals],[Agosto]],Diárias[[#Totals],[Agosto]],Domésticas[[#Totals],[Agosto]]) -> R$ 0.00 | L106: =SUM(Diversos[[#Totals],[Setembro]],Financeiro[[#Totals],[Setembro]],Pessoais[[#Totals],[Setembro]],MensalidadesEAssinaturas[[#Totals],[Setembro]],Lazer[[#Totals],[Setembro]],Férias[[#Totals],[Setembro]],Saúde[[#Totals],[Setembro]],Entretenimento[[#Totals],[Setembro]],Transporte[[#Totals],[Setembro]],Diárias[[#Totals],[Setembro]],Domésticas[[#Totals],[Setembro]]) -> R$ 0.00 | M106: =SUM(Diversos[[#Totals],[Outubro]],Financeiro[[#Totals],[Outubro]],Pessoais[[#Totals],[Outubro]],MensalidadesEAssinaturas[[#Totals],[Outubro]],Lazer[[#Totals],[Outubro]],Férias[[#Totals],[Outubro]],Saúde[[#Totals],[Outubro]],Entretenimento[[#Totals],[Outubro]],Transporte[[#Totals],[Outubro]],Diárias[[#Totals],[Outubro]],Domésticas[[#Totals],[Outubro]]) -> R$ 0.00 | N106: =SUM(Diversos[[#Totals],[Novembro]],Financeiro[[#Totals],[Novembro]],Pessoais[[#Totals],[Novembro]],MensalidadesEAssinaturas[[#Totals],[Novembro]],Lazer[[#Totals],[Novembro]],Férias[[#Totals],[Novembro]],Saúde[[#Totals],[Novembro]],Entretenimento[[#Totals],[Novembro]],Transporte[[#Totals],[Novembro]],Diárias[[#Totals],[Novembro]],Domésticas[[#Totals],[Novembro]]) -> R$ 0.00 | O106: =SUM(Diversos[[#Totals],[Dezembro]],Financeiro[[#Totals],[Dezembro]],Pessoais[[#Totals],[Dezembro]],MensalidadesEAssinaturas[[#Totals],[Dezembro]],Lazer[[#Totals],[Dezembro]],Férias[[#Totals],[Dezembro]],Saúde[[#Totals],[Dezembro]],Entretenimento[[#Totals],[Dezembro]],Transporte[[#Totals],[Dezembro]],Diárias[[#Totals],[Dezembro]],Domésticas[[#Totals],[Dezembro]]) -> R$ 0.00 | P106: =SUM(Diversos[[#Totals],[Ano]],Financeiro[[#Totals],[Ano]],Pessoais[[#Totals],[Ano]],MensalidadesEAssinaturas[[#Totals],[Ano]],Lazer[[#Totals],[Ano]],Férias[[#Totals],[Ano]],Saúde[[#Totals],[Ano]],Entretenimento[[#Totals],[Ano]],Transporte[[#Totals],[Ano]],Diárias[[#Totals],[Ano]],Domésticas[[#Totals],[Ano]]) -> R$ 8,834.00
C107: Diferença de caixa | D107: =Receita[[#Totals],[Janeiro]]-D106 -> R$ 1,036.00 | E107: =Receita[[#Totals],[Fevereiro]]-E106 -> R$ 127.00 | F107: =Receita[[#Totals],[Março]]-F106 -> R$ 926.00 | G107: =Receita[[#Totals],[Abr]]-G106 -> R$ 0.00 | H107: =Receita[[#Totals],[Maio]]-H106 -> R$ 0.00 | I107: =Receita[[#Totals],[Jun]]-I106 -> R$ 0.00 | J107: =Receita[[#Totals],[Julho]]-J106 -> R$ 0.00 | K107: =Receita[[#Totals],[Agosto]]-K106 -> R$ 0.00 | L107: =Receita[[#Totals],[Setembro]]-L106 -> R$ 0.00 | M107: =Receita[[#Totals],[Outubro]]-M106 -> R$ 0.00 | N107: =Receita[[#Totals],[Novembro]]-N106 -> R$ 0.00 | O107: =Receita[[#Totals],[Dezembro]]-O106 -> R$ 0.00 | P107: =Receita[[#Totals],[Ano]]-P106 -> R$ 2,089.00
